bitfinex/quotes_SOLUSD_20241101
["timestamp","ask_amount","ask_price","bid_price","bid_amount"]
[1730450082901,20.0,165.98,165.94,10.28709576]
[1730450083099,0.25098,165.97,165.95,10.28709576]
[1730450083528,20.0,165.99,165.91,6.0271]
[1730450083699,25.34149576,166.04,165.98,10.28709576]
[1730450083904,25.34149576,166.04,165.91,21.0955]
[1730450083905,3.24,166.03,165.99,10.28709576]
[1730450084307,0.12549,166.02,165.99,10.28709576]
[1730450084805,6.0226,166.04,165.99,10.28709576]
[1730450085510,0.12549,166.03,165.99,10.28709576]
[1730450086242,0.12549,166.02,165.99,10.28709576]
[1730450086627,0.25098,166.02,165.98,10.28709576]
[1730450086831,43.776884,166.03,165.98,10.28709576]
[1730450087022,20.12549,166.01,165.97,10.28709576]
[1730450089032,6.024,166.0,165.97,10.28709576]
[1730450090232,6.024,166.0,165.98,10.28709576]
[1730450095223,6.14989,165.99,165.97,10.28709576]
[1730450096433,6.14989,165.99,165.96,10.28709576]
[1730450099246,6.14989,165.99,165.97,10.28709576]
[1730450103460,6.27538,165.99,165.97,10.28709576]
[1730450104039,6.14989,165.99,165.98,10.28709576]
[1730450104443,6.27538,165.99,165.96,10.28709576]
[1730450104639,0.12549,165.98,165.95,10.28709576]
[1730450104953,0.12549,165.97,165.93,10.28709576]
[1730450106651,0.12549,165.95,165.93,10.28709576]
[1730450108653,6.15139,165.95,165.93,10.28709576]
[1730450110853,6.15139,165.95,165.94,10.28709576]
[1730450111055,26.15139,165.95,165.94,10.28709576]
[1730450111358,26.15139,165.95,165.91,16.5885]
[1730450111359,0.12549,165.94,165.93,10.28709576]
[1730450111557,0.12549,165.94,165.91,10.28709576]
[1730450111856,20.12549,165.94,165.91,10.28709576]
[1730450112039,0.12549,165.93,165.91,10.28709576]
[1730450113341,6.15219,165.93,165.92,10.28709576]
[1730450116431,6.15219,165.93,165.91,10.28709576]
[1730450116748,20.0,165.94,165.92,10.28709576]
[1730450116938,20.0,165.94,165.93,10.28709576]
[1730450117140,20.12549,165.94,165.93,10.28709576]
[1730450118143,0.12549,165.94,165.92,10.28709576]
[1730450120570,0.12549,165.94,165.93,10.28709576]
[1730450123243,20.12549,165.95,165.94,5.900807]
[1730450123962,23.776884,165.98,165.94,5.900807]
[1730450124175,20.0,166.01,165.96,10.28709576]
[1730450124463,25.61759576,166.02,165.96,10.28709576]
[1730450125040,0.12549,166.01,165.96,10.28709576]
[1730450125254,25.61759576,166.02,165.96,10.28709576]
[1730450125646,20.0,166.01,165.96,10.28709576]
[1730450125839,0.12549,166.0,165.96,10.28709576]
[1730450126465,20.0,165.99,165.96,10.28709576]
[1730450126661,20.0,165.99,165.97,10.28709576]
[1730450127371,10.28709576,166.05,165.98,10.28709576]
[1730450127566,0.12549,166.04,166.0,10.28709576]
[1730450128272,0.12549,166.05,166.0,10.28709576]
[1730450128651,44.027864,166.05,166.0,10.28709576]
[1730450129368,54.31495976,166.05,166.0,10.28709576]
[1730450129568,60.33715976,166.05,166.0,10.28709576]
[1730450129752,36.56027576,166.05,166.0,10.28709576]
[1730450129952,26.27318,166.05,166.0,10.28709576]
[1730450130263,26.27318,166.05,166.01,10.28709576]
[1730450131371,26.14849,166.03,166.01,10.28709576]
[1730450134150,26.14849,166.03,166.0,10.28709576]
[1730450134752,26.14849,166.03,165.99,10.28709576]
[1730450135162,26.14849,166.03,166.0,10.28709576]
[1730450138368,26.14849,166.03,166.01,10.28709576]
[1730450139354,26.023,166.03,166.02,10.28709576]
[1730450140357,15.70817533,166.08,166.02,10.28709576]
[1730450140557,20.12549,166.06,166.04,10.28709576]
[1730450142072,6.0222,166.05,166.04,10.28709576]
[1730450142279,6.0222,166.05,166.03,10.28709576]
[1730450143371,6.0222,166.05,166.04,10.28709576]
[1730450144272,50.048664,166.09,166.04,10.28709576]
[1730450146382,60.33575976,166.09,166.04,10.28709576]
[1730450151667,6.0204,166.1,166.07,10.28709576]
[1730450151870,6.0204,166.1,166.09,10.28709576]
[1730450152294,6.0204,166.1,166.05,41.14838304]
[1730450152295,6.0204,166.1,166.08,10.28709576]
[1730450152585,6.0204,166.1,166.04,21.2581]
[1730450152586,0.12549,166.09,166.05,10.28709576]
[1730450153163,20.12549,166.09,166.05,10.28709576]
[1730450153685,26.14659,166.08,166.03,10.28709576]
[1730450153873,26.14659,166.08,166.04,10.28709576]
[1730450154683,26.14659,166.08,166.05,10.28709576]
[1730450154880,26.14659,166.08,166.06,10.28709576]
[1730450155187,26.0211,166.08,166.07,10.28709576]
[1730450156359,18.69990912,166.12,166.07,10.28709576]
[1730450156565,20.0,166.1,166.07,10.28709576]
[1730450156762,20.0,166.1,166.08,10.28709576]
[1730450157373,20.0,166.1,166.09,10.28709576]
[1730450157774,26.0204,166.1,166.07,10.28709576]
[1730450159389,26.0204,166.1,166.09,10.28709576]
[1730450159579,26.0204,166.1,166.08,10.28709576]
[1730450160589,26.0204,166.1,166.06,10.28709576]
[1730450160979,24.027864,166.09,166.05,10.28709576]
[1730450161185,20.0,166.08,166.05,10.28709576]
[1730450161771,20.0,166.06,166.05,10.28709576]
[1730450161968,20.0,166.06,166.04,10.28709576]
[1730450162168,20.0,166.06,166.05,10.28709576]
[1730450166778,26.0219,166.06,166.05,10.28709576]
[1730450167697,26.0219,166.06,166.03,10.28709576]
[1730450168683,26.0219,166.06,166.05,10.28709576]
[1730450168889,26.0219,166.06,166.04,10.28709576]
[1730450171302,26.0219,166.06,166.03,10.28709576]
[1730450173596,26.0219,166.06,166.02,10.28709576]
[1730450173991,26.0219,166.06,166.01,10.28709576]
[1730450175682,10.28709576,166.08,166.01,10.28709576]
[1730450175683,20.0,166.07,166.01,10.28709576]
[1730450175893,26.0215,166.07,166.01,10.28709576]
[1730450176278,36.30859576,166.07,166.0,26.36339576]
[1730450176691,36.30859576,166.07,166.01,10.28709576]
[1730450176997,0.12549,166.05,166.0,26.36339576]
[1730450177503,10.41258576,166.05,165.99,10.28709576]
[1730450178097,6.023,166.03,165.99,10.28709576]
[1730450179600,10.41258576,166.05,165.99,10.28709576]
[1730450179802,6.0226,166.04,166.01,10.28709576]
[1730450180004,6.0226,166.04,166.0,10.28709576]
[1730450186219,6.0226,166.04,165.99,10.28709576]
[1730450187025,6.0226,166.04,166.0,10.28709576]
[1730450189006,6.0226,166.04,165.99,10.28709576]
[1730450189507,10.28709576,166.03,165.97,10.28709576]
[1730450190821,10.28709576,166.03,165.98,10.28709576]
[1730450191125,6.0233,166.02,165.98,10.28709576]
[1730450192926,6.0233,166.02,165.97,10.28709576]
[1730450194732,6.0233,166.02,165.98,10.28709576]
[1730450201638,20.0,166.01,165.97,10.28709576]
[1730450201838,30.28709576,166.01,165.96,10.28709576]
[1730450202131,6.0233,166.02,165.96,10.28709576]
[1730450202132,16.31039576,166.02,165.96,10.28709576]
[1730450203035,16.31039576,166.02,165.94,3.05764258]
[1730450203036,6.0233,166.02,165.97,10.28709576]
[1730450205125,16.31039576,166.02,165.96,10.28709576]
[1730450206641,16.31039576,166.02,165.97,10.28709576]
[1730450210245,16.31039576,166.02,165.96,10.28709576]
[1730450210952,10.28709576,166.01,165.95,10.28709576]
[1730450211240,10.28709576,166.01,165.96,10.28709576]
[1730450211445,6.024,166.0,165.96,10.28709576]
[1730450212255,10.28709576,165.99,165.93,10.28709576]
[1730450212747,10.28709576,165.99,165.94,10.28709576]
[1730450213534,6.0248,165.98,165.94,10.28709576]
[1730450216546,10.28709576,165.95,165.88,25.35799576]
[1730450216753,10.28709576,165.94,165.89,3.05802618]
[1730450216929,10.28709576,165.94,165.88,25.35799576]
[1730450217252,10.28709576,165.94,165.89,13.34518048]
[1730450217447,10.28709576,165.94,165.89,10.28709576]
[1730450217652,6.0266,165.93,165.89,10.28709576]
[1730450217844,16.31369576,165.93,165.88,10.28709576]
[1730450219247,6.0266,165.93,165.88,10.28709576]
[1730450219449,6.0266,165.93,165.89,10.28709576]
[1730450219640,6.0266,165.93,165.9,10.28709576]
[1730450219844,6.0266,165.93,165.91,10.28709576]
[1730450220152,20.0,165.96,165.92,10.28709576]
[1730450220368,20.0,165.96,165.93,10.28709576]
[1730450220655,20.0,165.96,165.92,10.28709576]
[1730450220963,10.28709576,165.97,165.92,10.28709576]
[1730450221173,6.0251,165.97,165.91,6.0272]
[1730450221353,6.0251,165.97,165.93,10.28709576]
[1730450221555,6.0251,165.97,165.92,10.28709576]
[1730450222075,16.31219576,165.97,165.92,10.28709576]
[1730450223574,16.31219576,165.97,165.91,10.28709576]
[1730450223956,6.0251,165.97,165.92,10.28709576]
[1730450224144,20.0,165.98,165.94,10.28709576]
[1730450224466,20.0,166.01,165.97,10.28709576]
[1730450224871,16.31009576,166.03,165.97,10.28709576]
[1730450225863,6.023,166.03,165.98,10.28709576]
[1730450226060,6.023,166.03,165.99,10.28709576]
[1730450226372,6.023,166.03,166.0,10.28709576]
[1730450226558,6.023,166.03,166.01,10.28709576]
[1730450226761,10.28709576,166.07,166.01,10.28709576]
[1730450226961,6.0219,166.06,166.01,10.28709576]
[1730450228277,16.30899576,166.06,166.01,10.28709576]
[1730450228979,20.0,166.06,166.01,10.28709576]
[1730450230277,10.28709576,166.09,166.03,10.28709576]
[1730450230460,6.0211,166.08,166.05,10.28709576]
[1730450230661,6.0207,166.1,166.07,10.28709576]
[1730450230873,6.0207,166.1,166.06,10.28709576]
[1730450231459,6.0207,166.1,166.07,10.28709576]
[1730450231781,6.0201,166.11,166.07,10.28709576]
[1730450232558,6.0201,166.11,166.06,10.28709576]
[1730450232962,6.0201,166.11,166.07,10.28709576]
[1730450235458,10.28709576,166.08,166.0,6.4227]
[1730450235667,10.28709576,166.06,166.0,16.70979576]
[1730450236191,10.28709576,166.06,166.0,10.28709576]
[1730450237196,16.30929576,166.05,165.99,10.28709576]
[1730450238995,6.0222,166.05,166.0,10.28709576]
[1730450242076,16.30929576,166.05,165.99,10.28709576]
[1730450242271,6.0222,166.05,166.0,10.28709576]
[1730450242688,16.30929576,166.05,166.0,10.28709576]
[1730450243197,16.30929576,166.05,165.99,10.28709576]
[1730450245791,6.0222,166.05,166.0,10.28709576]
[1730450250798,6.0222,166.05,165.98,30.5528]
[1730450250799,10.28709576,166.05,165.99,10.28709576]
[1730450252015,16.30899576,166.06,166.0,10.28709576]
[1730450253607,6.0219,166.06,166.02,10.28709576]
[1730450253787,10.28709576,166.1,166.04,10.28709576]
[1730450254910,6.0208,166.09,166.04,10.28709576]
[1730450255203,16.30789576,166.09,166.04,10.28709576]
[1730450255901,6.0208,166.09,166.04,10.28709576]
[1730450256094,6.0208,166.09,166.05,10.28709576]
[1730450257213,10.28709576,166.11,166.05,10.28709576]
[1730450257408,6.0204,166.1,166.05,10.28709576]
[1730450257714,6.0204,166.1,166.02,12.4025]
[1730450257715,10.28709576,166.09,166.04,10.28709576]
[1730450258389,10.28709576,166.1,166.05,10.28709576]
[1730450259509,30.28709576,166.11,166.05,10.28709576]
[1730450261900,10.28709576,166.06,165.99,10.28709576]
[1730450262109,10.28709576,166.05,165.99,13.33870438]
[1730450262324,10.28709576,166.06,166.01,10.28709576]
[1730450262509,10.28709576,166.07,166.01,10.28709576]
[1730450262813,10.28709576,166.06,166.01,10.28709576]
[1730450263112,10.28709576,166.07,166.01,10.28709576]
[1730450265818,9.78709576,166.06,166.01,10.28709576]
[1730450266117,10.28709576,166.02,165.98,15.4913]
[1730450267430,10.28709576,166.03,165.98,25.77839576]
[1730450267725,10.28709576,166.02,165.98,15.4913]
[1730450267935,10.28709576,166.06,166.0,10.28709576]
[1730450268223,10.28709576,166.06,166.01,10.28709576]
[1730450268429,10.28709576,166.05,166.0,10.28709576]
[1730450268813,16.30949576,166.05,165.99,10.28709576]
[1730450269122,10.28709576,166.04,165.98,46.86489576]
[1730450269325,10.28709576,166.03,165.98,46.86489576]
[1730450269529,10.28709576,166.02,165.98,15.4913]
[1730450269732,10.28709576,166.01,165.95,10.28709576]
[1730450270023,10.28709576,166.01,165.96,3.05769449]
[1730450270231,10.28709576,166.01,165.95,10.28709576]
[1730450270610,10.28709576,166.01,165.96,10.28709576]
[1730450270812,6.0232,166.03,165.99,10.28709576]
[1730450272924,16.30989576,166.04,165.99,10.28709576]
[1730450273320,6.0228,166.04,166.0,10.28709576]
[1730450273511,6.0228,166.04,166.01,10.28709576]
[1730450274030,10.28709576,166.06,166.01,10.28709576]
[1730450274236,6.0222,166.05,166.0,10.28709576]
[1730450275533,6.0222,166.05,166.0,10.28709576]
[1730450276428,6.0222,166.05,165.96,41.14838304]
[1730450276429,6.0222,166.05,166.01,10.28709576]
[1730450277212,6.0222,166.05,166.0,10.28709576]
[1730450279017,6.0222,166.05,166.01,10.28709576]
[1730450279624,6.0222,166.05,166.03,10.28709576]
[1730450279835,6.0222,166.05,166.02,10.28709576]
[1730450280538,10.28709576,166.07,166.02,10.28709576]
[1730450280835,6.0219,166.06,166.02,10.28709576]
[1730450281636,6.0219,166.06,166.01,10.28709576]
[1730450282614,10.28709576,166.06,166.0,26.73189576]
[1730450282817,10.28709576,166.05,165.99,10.28709576]
[1730450283018,10.28709576,166.05,165.97,21.0873]
[1730450283019,10.28709576,166.04,165.98,10.28709576]
[1730450283620,10.28709576,166.03,165.98,10.28709576]
[1730450284851,6.0233,166.02,165.98,10.28709576]
[1730450285235,10.28709576,166.06,166.0,10.28709576]
[1730450285541,6.0222,166.05,166.02,10.28709576]
[1730450285918,6.0222,166.05,166.01,10.28709576]
[1730450289227,16.30819576,166.08,166.03,10.28709576]
[1730450289919,10.28709576,166.07,166.01,10.28709576]
[1730450290640,6.0219,166.06,166.01,10.28709576]
[1730450291338,16.30899576,166.06,166.01,10.28709576]
[1730450293343,10.28709576,166.05,166.0,25.34709576]
[1730450293520,10.28709576,166.05,166.0,15.06]
[1730450293836,10.28709576,166.04,165.98,16.31189576]
[1730450294220,10.28709576,166.04,165.98,10.28709576]
[1730450294546,10.28709576,166.03,165.97,19.36896848]
[1730450294750,10.28709576,166.03,165.98,10.28709576]
[1730450295442,16.31029576,166.03,165.98,10.28709576]
[1730450300542,16.31029576,166.03,165.99,10.28709576]
[1730450301249,6.0232,166.03,165.99,10.28709576]
[1730450301453,6.0224,166.05,166.01,10.28709576]
[1730450302641,6.0215,166.07,166.02,10.28709576]
[1730450303228,16.30859576,166.07,166.02,10.28709576]
[1730450304048,10.28709576,166.05,166.0,31.37129576]
[1730450304852,16.30959576,166.05,166.0,15.0602]
[1730450305350,16.30959576,166.05,166.0,25.34729576]
[1730450306253,10.28709576,166.04,165.99,10.28709576]
[1730450306450,10.28709576,166.04,165.98,10.28709576]
[1730450307748,6.023,166.03,165.99,10.28709576]
[1730450307957,16.31009576,166.03,165.98,10.28709576]
[1730450310751,20.0,166.03,165.98,10.28709576]
[1730450312360,6.0233,166.02,165.98,10.28709576]
[1730450315152,6.0233,166.02,165.97,10.28709576]
[1730450315465,6.0233,166.02,165.98,10.28709576]
[1730450315647,6.0233,166.02,165.97,10.28709576]
[1730450316246,6.0233,166.02,165.98,10.28709576]
[1730450316445,16.31039576,166.02,165.97,10.28709576]
[1730450323761,16.31089576,166.01,165.97,10.28709576]
[1730450325547,16.31039576,166.02,165.97,10.28709576]
[1730450326866,6.023,166.03,166.0,10.28709576]
[1730450327087,16.30859576,166.07,166.02,10.28709576]
[1730450327378,10.28709576,166.06,166.01,10.28709576]
[1730450327537,6.0222,166.05,166.01,10.28709576]
[1730450328275,16.30929576,166.05,166.0,10.28709576]
[1730450329053,10.28709576,166.04,165.99,10.28709576]
[1730450329545,6.0222,166.05,166.0,10.28709576]
[1730450329546,16.30929576,166.05,166.0,10.28709576]
[1730450331056,10.28709576,166.04,165.99,10.28709576]
[1730450332364,10.28709576,166.02,165.97,25.34999576]
[1730450332947,10.28709576,166.03,165.98,10.28709576]
[1730450333147,20.0,166.02,165.98,10.28709576]
[1730450334187,30.28709576,166.02,165.97,25.34999576]
[1730450334350,20.0,166.02,165.98,10.28709576]
[1730450336361,30.28709576,166.02,165.97,25.34999576]
[1730450342663,10.28709576,166.01,165.96,10.28709576]
[1730450343679,10.28709576,166.0,165.96,10.28709576]
[1730450344367,10.28709576,166.01,165.96,10.28709576]
[1730450344892,10.28709576,166.0,165.96,10.28709576]
[1730450346273,10.28709576,165.98,165.94,25.35259576]
[1730450346960,10.28709576,165.99,165.94,25.35259576]
[1730450347681,10.28709576,166.0,165.95,10.28709576]
[1730450347892,20.0,166.0,165.97,10.28709576]
[1730450348186,20.0,166.04,165.99,10.28709576]
[1730450348478,20.0,166.04,166.0,10.28709576]
[1730450348883,10.28709576,166.05,166.0,10.28709576]
[1730450349081,10.28709576,166.04,165.99,10.28709576]
[1730450350294,10.28709576,166.04,165.98,10.28709576]
[1730450350593,20.0,166.03,165.99,10.28709576]
[1730450351272,30.28709576,166.03,165.98,10.28709576]
[1730450351591,36.31009576,166.03,165.98,10.28709576]
[1730450353686,26.023,166.03,165.98,10.28709576]
[1730450358896,6.023,166.03,165.96,0.1]
[1730450359096,20.0,166.05,166.01,10.28709576]
[1730450359282,10.28709576,166.03,165.98,13.34663965]
[1730450359483,10.28709576,166.03,165.97,41.83209576]
[1730450359679,10.28709576,166.01,165.96,10.28709576]
[1730450359887,10.28709576,166.01,165.95,10.28709576]
[1730450360089,10.28709576,166.0,165.95,10.28709576]
[1730450360398,10.28709576,165.99,165.94,25.35259576]
[1730450361271,16.31169576,165.99,165.93,26.76919576]
[1730450361477,16.31169576,165.99,165.94,13.34673488]
[1730450361702,16.31169576,165.99,165.94,10.28709576]
[1730450362384,16.31169576,165.99,165.93,26.76919576]
[1730450362693,6.0246,165.99,165.95,10.28709576]
[1730450362882,6.0246,165.99,165.96,10.28709576]
[1730450363284,26.024,166.0,165.96,10.28709576]
[1730450364176,36.31109576,166.0,165.94,10.28709576]
[1730450364379,6.0248,165.98,165.94,10.28709576]
[1730450365382,6.0248,165.98,165.93,32.79569576]
[1730450366399,6.0248,165.98,165.94,10.28709576]
[1730450368690,30.28709576,165.97,165.92,10.28709576]
[1730450369080,20.0,165.97,165.92,10.28709576]
[1730450369396,10.28709576,165.95,165.89,10.28709576]
[1730450369702,10.28709576,165.94,165.89,10.28709576]
[1730450370301,6.0266,165.93,165.89,10.28709576]
[1730450371908,16.31299576,165.95,165.89,10.28709576]
[1730450373009,10.28709576,165.94,165.89,10.28709576]
[1730450374097,16.31369576,165.94,165.89,10.28709576]
[1730450374609,6.0266,165.94,165.89,10.28709576]
[1730450375198,6.0266,165.94,165.89,16.31499576]
[1730450376012,6.0266,165.94,165.9,10.28709576]
[1730450380025,16.31369576,165.94,165.89,10.28709576]
[1730450380195,16.31369576,165.94,165.88,6.0284]
[1730450380196,30.28709576,165.93,165.88,10.28709576]
[1730450380395,10.28709576,165.92,165.87,10.28709576]
[1730450381095,16.31409576,165.92,165.87,16.31579576]
[1730450381796,16.31409576,165.92,165.86,24.43104793]
[1730450381797,10.28709576,165.91,165.86,15.0722]
[1730450381995,10.28709576,165.91,165.85,16.78164786]
[1730450382399,10.28709576,165.91,165.86,10.28709576]
[1730450383113,6.0275,165.91,165.87,10.28709576]
[1730450384799,16.31459576,165.91,165.86,10.28709576]
[1730450385401,10.28709576,165.9,165.85,16.78164786]
[1730450386209,10.28709576,165.89,165.85,0.4653521]
[1730450386492,20.0,165.88,165.85,0.4653521]
[1730450389899,36.31559576,165.88,165.85,0.4653521]
[1730450391302,10.28709576,165.87,165.85,0.4653521]
[1730450391504,20.0,165.86,165.85,0.4653521]
[1730450392800,26.0291,165.86,165.85,0.4653521]
[1730450404239,36.31619576,165.86,165.85,0.4653521]
[1730450404916,26.0291,165.86,165.85,0.4653521]
[1730450406223,20.0,165.87,165.85,0.4653521]
[1730450406439,10.28709576,165.9,165.85,10.75244786]
[1730450406740,30.28709576,165.9,165.85,10.75244786]
[1730450407035,10.28709576,165.89,165.85,10.75244786]
[1730450407421,10.28709576,165.88,165.85,0.4653521]
[1730450407621,10.28709576,165.87,165.85,0.4653521]
[1730450408431,16.31609576,165.87,165.85,0.4653521]
[1730450412932,20.0,165.87,165.85,0.4653521]
[1730450413129,16.31479576,165.9,165.85,10.75244786]
[1730450413450,30.28709576,165.89,165.85,10.75244786]
[1730450414223,30.28709576,165.89,165.85,0.4653521]
[1730450414940,10.28709576,165.87,165.85,0.4653521]
[1730450416127,16.31599576,165.87,165.85,0.4653521]
[1730450419849,20.0,165.87,165.85,0.4653521]
[1730450425735,6.0288,165.87,165.85,0.4653521]
[1730450426648,6.0282,165.89,165.85,10.75244786]
[1730450427140,16.31529576,165.89,165.85,0.4653521]
[1730450427328,20.0,165.88,165.85,0.4653521]
[1730450428325,30.28709576,165.88,165.85,0.4653521]
[1730450428847,6.0288,165.87,165.85,0.4653521]
[1730450433148,20.0,165.89,165.85,10.75244786]
[1730450433351,11.33216358,165.9,165.87,10.28709576]
[1730450433352,1.04506782,165.9,165.87,10.28709576]
[1730450433662,6.0276,165.91,165.87,10.28709576]
[1730450436751,6.0276,165.91,165.86,10.28709576]
[1730450437050,10.28709576,165.9,165.85,16.78184786]
[1730450437545,16.31489576,165.9,165.85,16.78184786]
[1730450440956,20.0,165.9,165.86,10.28709576]
[1730450441856,20.0,165.91,165.86,10.28709576]
[1730450443552,26.0276,165.91,165.86,10.28709576]
[1730450443756,36.31469576,165.91,165.86,10.28709576]
[1730450444254,36.31469576,165.91,165.85,19.68012018]
[1730450444467,10.28709576,165.9,165.85,19.68012018]
[1730450444753,16.31479576,165.9,165.85,0.4653521]
[1730450445554,20.0,165.91,165.85,15.5391521]
[1730450445858,20.0,165.91,165.88,10.28709576]
[1730450447967,36.31439576,165.91,165.86,16.31609576]
[1730450448366,10.28709576,165.9,165.85,25.82624786]
[1730450448564,10.28709576,165.9,165.85,0.4653521]
[1730450448967,10.28709576,165.9,165.85,10.75244786]
[1730450449472,36.31439576,165.91,165.86,10.28709576]
[1730450449878,36.31439576,165.91,165.85,10.75244786]
[1730450450082,36.31439576,165.91,165.86,10.28709576]
[1730450452266,36.31439576,165.91,165.85,10.75244786]
[1730450452863,10.28709576,165.9,165.85,10.75244786]
[1730450453266,36.31439576,165.91,165.85,10.75244786]
[1730450455175,36.31439576,165.91,165.86,10.28709576]
[1730450460071,26.0273,165.91,165.87,10.28709576]
[1730450461392,26.0273,165.91,165.86,10.28709576]
[1730450462684,16.31489576,165.9,165.85,16.78184786]
[1730450463064,6.0278,165.9,165.85,16.78184786]
[1730450463267,6.0278,165.9,165.86,10.28709576]
[1730450464786,6.0278,165.9,165.87,10.28709576]
[1730450465016,6.0278,165.9,165.88,10.28709576]
[1730450465785,6.0278,165.9,165.87,10.28709576]
[1730450467274,20.0,165.91,165.89,10.28709576]
[1730450467478,20.0,165.94,165.89,10.28709576]
[1730450467680,10.28709576,165.94,165.89,10.28709576]
[1730450469181,20.0,165.93,165.89,10.28709576]
[1730450471991,30.28709576,165.93,165.88,10.28709576]
[1730450472176,10.28709576,165.92,165.87,16.31579576]
[1730450472374,10.28709576,165.92,165.87,10.28709576]
[1730450472576,30.28709576,165.91,165.86,10.28709576]
[1730450472777,30.28709576,165.91,165.85,16.78194786]
[1730450473272,30.28709576,165.91,165.86,10.28709576]
[1730450474982,20.0,165.91,165.86,10.28709576]
[1730450476480,6.0277,165.9,165.87,10.28709576]
[1730450477102,6.0277,165.9,165.88,10.28709576]
[1730450477594,20.0,165.9,165.88,10.28709576]
[1730450477892,20.0,165.92,165.89,10.28709576]
[1730450478197,26.0271,165.92,165.89,10.28709576]
[1730450478772,20.0,165.92,165.9,10.28709576]
[1730450478972,20.0,165.92,165.91,10.28709576]
[1730450480480,20.0,165.92,165.9,10.28709576]
[1730450480883,26.027,165.92,165.9,10.28709576]
[1730450481890,26.027,165.92,165.89,10.28709576]
[1730450483603,26.027,165.92,165.9,10.28709576]
[1730450484178,26.0259,165.95,165.91,10.28709576]
[1730450484501,26.0259,165.95,165.92,10.28709576]
[1730450484794,6.0259,165.95,165.93,10.28709576]
[1730450485382,6.0248,165.98,165.93,10.28709576]
[1730450485985,6.0237,166.01,165.97,10.28709576]
[1730450486297,6.0237,166.01,165.98,10.28709576]
[1730450487000,10.28709576,166.04,165.98,10.28709576]
[1730450487001,6.023,166.03,165.98,10.28709576]
[1730450487586,20.0,166.02,165.99,10.28709576]
[1730450487886,10.28709576,166.04,165.99,10.28709576]
[1730450488094,26.023,166.03,165.99,10.28709576]
[1730450489906,26.023,166.03,165.98,10.28709576]
[1730450490391,26.023,166.03,165.99,10.28709576]
[1730450492200,26.023,166.03,165.98,10.28709576]
[1730450495093,36.31009576,166.03,165.98,10.28709576]
[1730450495296,36.31009576,166.03,165.97,10.28709576]
[1730450495497,10.28709576,166.0,165.95,10.28709576]
[1730450495687,20.0,165.99,165.95,10.28709576]
[1730450498605,10.28709576,166.0,165.92,27.7135]
[1730450498606,26.024,166.0,165.96,10.28709576]
[1730450498782,20.0,166.03,165.99,10.28709576]
[1730450498984,6.023,166.03,165.99,10.28709576]
[1730450500285,20.0,166.02,165.99,10.28709576]
[1730450501488,20.0,166.03,165.99,10.28709576]
[1730450501797,20.0,166.03,166.0,10.28709576]
[1730450502102,20.0,166.03,165.98,10.28709576]
[1730450502306,20.0,166.0,165.95,10.28709576]
[1730450502814,20.0,166.01,165.97,10.28709576]
[1730450503699,20.0,166.01,165.98,10.28709576]
[1730450503904,20.0,166.02,165.98,10.28709576]
[1730450504096,20.12549,166.04,165.99,10.28709576]
[1730450504293,20.0,166.04,165.99,10.28709576]
[1730450504593,20.0,166.03,165.99,10.28709576]
[1730450506384,26.023,166.03,165.99,10.28709576]
[1730450509009,26.023,166.03,166.01,10.28709576]
[1730450509514,1.04744744,166.05,166.02,10.28709576]
[1730450509719,30.28709576,166.06,166.01,10.28709576]
[1730450510033,20.0,166.02,165.98,10.28709576]
[1730450511414,20.0,166.03,165.98,10.28709576]
[1730450512204,30.28709576,166.03,165.97,10.28709576]
[1730450513408,36.31009576,166.03,165.97,10.28709576]
[1730450515392,26.023,166.03,165.98,10.28709576]
[1730450516898,26.023,166.03,165.99,10.28709576]
[1730450517902,26.023,166.03,166.0,10.28709576]
[1730450518796,26.023,166.03,165.99,10.28709576]
[1730450520413,26.023,166.03,165.98,10.28709576]
[1730450520617,36.31009576,166.03,165.98,10.28709576]
[1730450520810,36.31009576,166.03,165.97,10.28709576]
[1730450521826,26.023,166.03,165.98,10.28709576]
[1730450522216,20.0,166.01,165.96,10.28709576]
[1730450522412,30.28709576,166.01,165.95,10.28709576]
[1730450523030,20.0,165.99,165.94,10.28709576]
[1730450523914,6.0248,165.98,165.94,10.28709576]
[1730450524618,6.0248,165.98,165.93,10.28709576]
[1730450524619,20.0,165.97,165.93,10.28709576]
[1730450525436,26.0248,165.98,165.94,10.28709576]
[1730450528538,26.0248,165.98,165.93,10.28709576]
[1730450528744,36.31189576,165.98,165.93,10.28709576]
[1730450529121,20.0,165.96,165.91,10.28709576]
[1730450529330,30.28709576,165.96,165.91,10.28709576]
[1730450529730,20.0,165.94,165.9,10.28709576]